Cogmind - Beta 13 *** ADVENTURER MODE // 2024.04.04 @ 14:42:57 Player: ActualDio Result: Destroyed by IV-NPT(z) with Zionite Laser-S Performance ------------- Evolutions (1) 500 Regions Visited (6) 1200 Robots Destroyed (47) 235 Value Destroyed (1244) 1244 Prototype IDs (5) 100 Alien Tech Used (0) 0 Bonus (646) 646 TOTAL SCORE: 3925 Bonus ------- High Alert Combat Kills 46 Met Imprinter 300 Was Imprinted 300 Cogmind --------- Core Integrity 0/400 Matter 300/300 Energy 100/100 System Corruption 0% Temperature Cool (9) Movement Core (350) Ox6 Location -7/Deep Caves Parts ------- > --- POWER (1) -------- (None) > --- PROPULSION (4) --- (None) > --- UTILITY (2) ------ Large Storage Unit Advanced Signal Interpreter > --- WEAPON (2) ------- (None) > --- INVENTORY (15) --- Experimental Optical Array 0b10 Decoder Chip [Scout] Improved Medium Armor Plating Experimental System Shield Relay Coupler [Grunt] (66) Relay Coupler [Programmer] (108) Relay Coupler [Programmer] (88) Relay Coupler [Programmer] (62) Component Analysis Suite Thief Drone Bay (3/3) Heavy Riot Gun Makeshift Shrapnel Gun Rocket Launcher CR-A16's Pointy Stick Self-destruct Interrupter (50) Peak State ------------ > --- POWER ------------ Light Deuterium Engine > --- PROPULSION ------- Compact Wheel Compact Wheel Cesium-ion Thruster > --- UTILITY ---------- Large Storage Unit Advanced Signal Interpreter > --- WEAPON ----------- Gauss Rifle RU-N14's Throwing Claymores > --- INVENTORY -------- Light Deuterium Engine Experimental Optical Array 0b10 Decoder Chip [Scout] Improved Medium Armor Plating Experimental System Shield Relay Coupler [Grunt] Relay Coupler [Programmer] Relay Coupler [Programmer] Relay Coupler [Programmer] Component Analysis Suite Thief Drone Bay Heavy Riot Gun Makeshift Shrapnel Gun Rocket Launcher RU-N14's Throwing Claymores [Rating: 33] Favorites ----------- Power Light Deuterium Engine Engine Light Deuterium Engine Propulsion Compact Wheel Wheel Compact Wheel Flight Unit Cesium-ion Thruster Utility Large Storage Unit Device Component Analysis Suite Storage Large Storage Unit Processor Signal Interpreter Weapon Heavy Assault Rifle Energy Gun Medium Laser Ballistic Gun Heavy Assault Rifle Special Weapon RU-N14's Throwing Claymores Build | -11 -10 -10 -9 -9 -7 -7 ------- Run | Yrd Mat Min Mat Min Zio Dee Slots Evolved 2 | . . . 2 . . . Power . | . . . . . . . Propulsion 2 | . . . 2 . . . Utility . | . . . . . . . Weapon . | . . . . . . . Parts Attached 34 | 6 10 2 7 1 8 . Power 6 | 1 2 . 2 . 1 . Engine 6 | 1 2 . 2 . 1 . Core . | . . . . . . . Reactor . | . . . . . . . Propulsion 10 | 2 3 . 3 1 1 . Treads . | . . . . . . . Leg . | . . . . . . . Wheel 9 | 2 3 . 3 1 . . Hover . | . . . . . . . Flight 1 | . . . . . 1 . Utility 8 | 1 3 . 1 . 3 . Device 2 | . 1 . . . 1 . Storage 3 | 1 1 . . . 1 . Processor 3 | . 1 . 1 . 1 . Hackware . | . . . . . . . Protection . | . . . . . . . Artifact . | . . . . . . . Weapon 10 | 2 2 2 1 . 3 . Energy Gun 1 | 1 . . . . . . Energy Cannon . | . . . . . . . Ballistic Gun 8 | 1 2 2 1 . 2 . Ballistic Cannon . | . . . . . . . Launcher . | . . . . . . . Special Weapon 1 | . . . . . 1 . Impact Weapon . | . . . . . . . Slashing Weapon . | . . . . . . . Piercing Weapon . | . . . . . . . Special Melee Weapon . | . . . . . . . Unidentified Prototypes 1 | . . . . . 1 . Parts Lost 17 | . 6 . 2 4 . 5 Power 3 | . 2 . . . . 1 Propulsion 9 | . 2 . 1 3 . 3 Utility . | . . . . . . . Weapon 5 | . 2 . 1 1 . 1 Highest Loss Streak 5 | . 5 . 1 3 . 5 To Critical Strikes . | . . . . . . . Average Slot Usage (%) 88 | . 94 100 95 72 83 74 Engine 12 | . 12 14 11 11 11 10 Wheel 25 | . 26 28 40 23 22 21 Flight 3 | . . . . . 8 10 Storage 11 | . 14 14 11 11 9 11 Processor 11 | . 11 14 11 11 11 11 Ballistic Gun 19 | . 19 28 21 15 14 10 Special Weapon 1 | . . . . . 4 1 Naked Turns . | . . . . . . . Heaviest Build 37 | 13 27 31 33 31 37 37 Greatest Support 60 | 20 32 32 60 38 32 32 Greatest Overweight (x) 6 | 1 1 . . 1 1 6 Average Overweight (x) . | . . . . . . . Largest Inventory Capacity 15 | 8 15 15 15 15 15 15 Average Capacity 14 | 7 9 15 15 15 13 15 Most Carried 15 | 7 8 13 15 13 15 15 Average Carried 11 | 3 5 9 12 12 13 15 Final Capacity 15 | 8 15 15 15 15 15 15 Final Carried 15 | 2 8 12 12 12 15 15 Class Distribution -------------------- 59% | Mutant 36% | Scavenger-Mutant 3% | Derelict-Mutant Dominant Class ---------------- Mutant | -10/Materials Scavenger-Mutant | -10/Mines Scavenger-Mutant | -9/Materials Mutant | -9/Mines Mutant | -7/Zion Mutant | -7/Deep Caves Resources | -11 -10 -10 -9 -9 -7 -7 ----------- Run | Yrd Mat Min Mat Min Zio Dee Matter Collected 951 | 213 171 82 273 119 80 13 Remotely . | . . . . . . . Salvage Created 1619 | . 497 83 693 346 . . Parts 104 | . 29 3 55 17 . . Haulers Intercepted . | . . . . . . . Recyclers Shooed 1 | . 1 . . . . . Parts Field Recycled . | . . . . . . . Retrieved Matter . | . . . . . . . Parts Self-Destructed . | . . . . . . . Prevented . | . . . . . . . Kills | -11 -10 -10 -9 -9 -7 -7 ------- Run | Yrd Mat Min Mat Min Zio Dee Combat Hostiles Destroyed 37 | . 9 2 18 6 . 2 Guns 35 | . 9 2 18 6 . . AOE 2 | . . . . . . 2 Classes Destroyed 10 | . 4 . 3 2 . 1 Worker 4 | . 1 . 1 2 . . Builder 1 | . 1 . . . . . Recycler 1 | . . . . 1 . . Watcher 6 | . 3 . 3 . . . Swarmer 8 | . . . 8 . . . Grunt 20 | . 9 2 4 5 . . Brawler 1 | . . . . 1 . . Duelist 1 | . . . 1 . . . Sentry 5 | . . . 5 . . . Assembled 2 | . . . . . . 2 Best Kill Streak 7 | . 6 2 7 3 . 2 Combat Bots Only 7 | . 4 2 7 3 . 2 Max Kills in Single Turn 2 | . 1 1 2 1 . 1 Gunslinging 1 | . . . 1 . . . Exploded 1 | . . . . . . 1 Melee . | . . . . . . . Uniques/NPCs Destroyed . | . . . . . . . Combat | -11 -10 -10 -9 -9 -7 -7 -------- Run | Yrd Mat Min Mat Min Zio Dee Hostile Shots Fired 234 | . 83 13 63 37 . 38 Missed 60 | . 17 2 18 8 . 15 Damage Taken 1971 | . 633 137 401 270 . 530 Core 618 | . 166 40 110 65 . 237 Absorbed by Shields . | . . . . . . . Ignored by Resistances 585 | . 195 41 125 84 . 140 Core Remaining (%) 58 | 100 . 17 . . . . Volleys Fired 131 | . 50 7 37 33 . 4 Largest 2 | . 2 2 2 2 . 2 Hottest 70 | . 70 46 46 46 . 28 Shots Fired 218 | . 84 14 71 43 . 6 Gun 216 | . 84 14 71 43 . 4 Cannon . | . . . . . . . Launcher . | . . . . . . . Special 2 | . . . . . . 2 Kinetic 190 | . 58 14 71 43 . 4 Thermal 26 | . 26 . . . . . Explosive 2 | . . . . . . 2 Electromagnetic . | . . . . . . . Robot Hit Streak 20 | . 12 19 20 17 . 1 Robot Miss Streak 3 | . 2 . 3 2 . 1 Penetration Max . | . . . . . . . Secondary Targets 10 | . 1 1 7 1 . . Max Gunslinging Chain 1 | . 1 1 1 1 . . Shots Hit Robots 167 | . 64 13 51 36 . 3 Core Hits 81 | . 29 5 32 13 . 2 Critical Kills 2 | . . . 2 . . . Critical Parts Destroyed 1 | . . . . 1 . . Critical Strikes 4 | . 1 . 2 1 . . Burn 1 | . 1 . . . . . Destroy 3 | . . . 2 1 . . Melee Attacks . | . . . . . . . Impact . | . . . . . . . Slashing . | . . . . . . . Piercing . | . . . . . . . Sneak Attacks . | . . . . . . . Combat Hostiles . | . . . . . . . Follow-up Attacks . | . . . . . . . Damage Inflicted 2424 | . 625 194 806 534 . 265 Guns 2174 | . 625 194 800 534 . 21 Cannons . | . . . . . . . Explosions 192 | . . . . . . 192 Melee . | . . . . . . . Ramming 6 | . . . 6 . . . Kinetic 1924 | . 375 194 800 534 . 21 Thermal 250 | . 250 . . . . . Explosive 192 | . . . . . . 192 Electromagnetic . | . . . . . . . Impact . | . . . . . . . Slashing 52 | . . . . . . 52 Piercing . | . . . . . . . Highest Corruption . | . . . . . . . Average Corruption . | . . . . . . . Corruption Purged . | . . . . . . . Corruption Blocked . | . . . . . . . Overload Shots . | . . . . . . . Overflow Damage . | . . . . . . . Projectiles . | . . . . . . . Explosions . | . . . . . . . Melee . | . . . . . . . Knockbacks . | . . . . . . . Impact . | . . . . . . . Kinetic . | . . . . . . . Secondary . | . . . . . . . Self-Inflicted Damage 3 | . . . 3 . . . Shots . | . . . . . . . Rammed 1 | . . . 1 . . . Targets Rammed 1 | . . . 1 . . . Kicked . | . . . . . . . Crushed . | . . . . . . . Highest Temperature 246 | . 246 25 19 20 . 12 Average Temperature 74 | . 97 11 6 6 . 7 Received Heat Transfer 1189 | . 507 114 135 213 . 220 Effects 4 | . 4 . . . . . Interference 4 | . 4 . . . . . Siege Activations . | . . . . . . . Robots Corrupted . | . . . . . . . Combat Hostiles . | . . . . . . . Parts Fried . | . . . . . . . Impact Corruptions . | . . . . . . . Robots Melted . | . . . . . . . Combat Hostiles . | . . . . . . . Parts Melted 4 | . 3 . . 1 . . Heat Transferred 814 | . 814 . . . . . Parts Sabotaged . | . . . . . . . Parts Stolen . | . . . . . . . Parts Stripped . | . . . . . . . Power Chain Reactions . | . . . . . . . Alert | -11 -10 -10 -9 -9 -7 -7 ------- Run | Yrd Mat Min Mat Min Zio Dee Peak Influence 590 | . 226 50 590 233 . . Initial 128 | . . 8 . 128 . . Average 80 | . 113 4 280 130 . . Maximum Alert Level 2 | . 1 . 2 1 . . Low Security (%) 85 | 100 73 100 36 85 . . Level 1 9 | . 26 . 27 14 . . Level 2 4 | . . . 36 . . . Level 3 . | . . . . . . . Level 4 . | . . . . . . . Level 5 . | . . . . . . . High Security . | . . . . . . . Max Security . | . . . . . . . Squads Dispatched 3 | . 1 . 2 . . . Investigation 2 | . 1 . 1 . . . Extermination . | . . . . . . . Reinforcement 1 | . . . 1 . . . Assault . | . . . . . . . Garrison . | . . . . . . . Intercept . | . . . . . . . Searches Triggered . | . . . . . . . Construction Impeded . | . . . . . . . Haulers Reinforced . | . . . . . . . Active Scanning Responses . | . . . . . . . Cargo Convoy Interrupts . | . . . . . . . Stealth | -11 -10 -10 -9 -9 -7 -7 --------- Run | Yrd Mat Min Mat Min Zio Dee Distress Signals 4 | . 2 2 . . . . Communications Jammed . | . . . . . . . Distress Signals . | . . . . . . . Times Spotted 54 | . 16 2 24 6 . 6 Peak Tracking Total 4 | . 4 2 4 3 . 3 Tactical Retreats 2 | . 1 . 1 . . . Traps | -11 -10 -10 -9 -9 -7 -7 ------- Run | Yrd Mat Min Mat Min Zio Dee Traps Triggered . | . . . . . . . Indirectly . | . . . . . . . Trap Hack Attempts . | . . . . . . . Triggered . | . . . . . . . Disarmed . | . . . . . . . Reprogrammed . | . . . . . . . Reused . | . . . . . . . Traps Extracted . | . . . . . . . Installed . | . . . . . . . Triggered . | . . . . . . . Machines | -11 -10 -10 -9 -9 -7 -7 ---------- Run | Yrd Mat Min Mat Min Zio Dee Machines Disabled 1 | . . . . . . 1 Max in Single Turn 1 | . . . . . . 1 Machines Repaired . | . . . . . . . Machines Dismantled . | . . . . . . . Machines Sabotaged . | . . . . . . . Overloaded Fab Kills . | . . . . . . . Hacking | -11 -10 -10 -9 -9 -7 -7 --------- Run | Yrd Mat Min Mat Min Zio Dee Machines Accessed 9 | . 4 2 3 . . . Terminals 7 | . 4 1 2 . . . Fabricators . | . . . . . . . Repair Stations . | . . . . . . . Recycling Units . | . . . . . . . Scanalyzers 1 | . . . 1 . . . Garrison Access . | . . . . . . . Total Hacks 24 | . 11 3 10 . . . Successful 10 | . 2 3 5 . . . Failed 14 | . 9 . 5 . . . Catastrophic 1 | . 1 . . . . . Database Lockouts . | . . . . . . . Manual 21 | . 7 1 6 . 7 . Terminals 20 | . 11 2 7 . . . Fabricators . | . . . . . . . Repair Stations . | . . . . . . . Recycling Units . | . . . . . . . Scanalyzers 3 | . . . 3 . . . Garrison Access . | . . . . . . . Terminal Hacks 8 | . 2 3 3 . . . Open Door 1 | . . 1 . . . . Level Access Points 1 | . . . 1 . . . Branch Access Points 2 | . . 1 1 . . . Terminal Index 2 | . 1 . 1 . . . Zone Layout 2 | . 1 1 . . . . Fabricator Hacks . | . . . . . . . Repair Station Hacks . | . . . . . . . Recycling Unit Hacks . | . . . . . . . Scanalyzer 2 | . . . 2 . . . Insert Component 1 | . . . 1 . . . Analyze 1 | . . . 1 . . . Garrison Access Hacks . | . . . . . . . Unauthorized Hacks . | . . . . . . . Terminals . | . . . . . . . Fabricators . | . . . . . . . Repair Stations . | . . . . . . . Recycling Units . | . . . . . . . Scanalyzers . | . . . . . . . Garrison Access . | . . . . . . . Data Cores Recovered . | . . . . . . . Used . | . . . . . . . Hacking Detections 5 | . 3 . 2 . . . Full Trace Events 3 | . 2 . 1 . . . Feedback Events . | . . . . . . . Feedback Blocked . | . . . . . . . Robot Schematics Acquired 3 | . . . . . 3 . Robots Built . | . . . . . . . Authchips . | . . . . . . . Time . | . . . . . . . Total Robot Build Rating . | . . . . . . . Part Schematics Acquired 14 | . . . 1 . 13 . Parts Built . | . . . . . . . Authchips . | . . . . . . . Time . | . . . . . . . Total Part Build Rating . | . . . . . . . Parts Repaired . | . . . . . . . Time . | . . . . . . . Parts Recycled . | . . . . . . . Recycled Matter . | . . . . . . . Retrieved Matter . | . . . . . . . Retrieved Components . | . . . . . . . Parts Scanalyzed 1 | . . . 1 . . . Part Schematics Acquired 1 | . . . 1 . . . Parts Damaged . | . . . . . . . Bothacking | -11 -10 -10 -9 -9 -7 -7 ------------ Run | Yrd Mat Min Mat Min Zio Dee Used RIF Installer . | . . . . . . . Robots Hacked . | . . . . . . . Non-combat . | . . . . . . . Combat . | . . . . . . . Robot Hacks Applied . | . . . . . . . Relay Couplers Released . | . . . . . . . Fabnet Peak Effective % . | . . . . . . . Robots Rewired . | . . . . . . . Allies Hacked . | . . . . . . . Hacks Repelled . | . . . . . . . Allies | -11 -10 -10 -9 -9 -7 -7 -------- Run | Yrd Mat Min Mat Min Zio Dee Total Allies 7 | . . . . . 7 . Largest Group 7 | . . . . . 7 6 Highest-Rated Group 253 | . . . . . 253 214 Highest-Rated Ally 41 | . . . . . 41 41 Total Orders . | . . . . . . . Ally Attacks 24 | . . . . . . 24 Total Damage 165 | . . . . . . 165 Kills 1 | . . . . . . 1 Allies Corrupted . | . . . . . . . Allies Melted . | . . . . . . . Intel | -11 -10 -10 -9 -9 -7 -7 ------- Run | Yrd Mat Min Mat Min Zio Dee Robot Analysis Total . | . . . . . . . Derelict Logs Recovered 4 | . . 2 . . 2 . Drone Launches . | . . . . . . . Drone Recoveries . | . . . . . . . Exploration | -11 -10 -10 -9 -9 -7 -7 ------------- Run | Yrd Mat Min Mat Min Zio Dee Turns Passed 5323 | 36 400 1654 400 680 1937 216 Spaces Moved 3673 | 31 284 869 280 481 1529 199 Core 18 | 16 . . . . . 2 Treads . | . . . . . . . Legs . | . . . . . . . Wheels 3655 | 15 284 869 280 481 1529 197 Hover . | . . . . . . . Flight . | . . . . . . . Fastest Speed 50 | 50 80 100 92 90 100 100 Average Speed 101 | 74 88 100 95 100 106 104 Slowest Speed 350 | 100 105 100 100 115 115 350 Overloaded Moves . | . . . . . . . Propulsion Burnouts . | . . . . . . . Robots Hopped 1 | . . . . . 1 . Cave-ins Triggered . | . . . . . . . Exploration Rate (%) 54 | 3 49 102 40 62 93 30 Regions Visited 6 Branch Regions 4 Pre-discovered Areas 2 | . . . . . 2 . Known Exits Taken 5 | . 1 1 1 1 1 . Unknown Exits Taken 1 | 1 . . . . . . Scrap Searched 7 | . . 2 . 1 4 . Spaces Dug . | . . . . . . . Terrain Destroyed 25 | . . . . . . 25 Melee . | . . . . . . . Projectile . | . . . . . . . AOE 25 | . . . . . . 25 Terrain Rammed . | . . . . . . . Walls Destroyed . | . . . . . . . Machines Disabled . | . . . . . . . Actions | -11 -10 -10 -9 -9 -7 -7 --------- Run | Yrd Mat Min Mat Min Zio Dee Total 5065 | 43 358 1640 344 634 1843 203 Wait 1127 | . . 753 . 119 255 . Move 3665 | 30 283 868 279 480 1526 199 Hop 1 | . . . . . 1 . Pick Up 74 | 7 14 7 12 1 33 . Fast Attach 4 | 1 . . . . 3 . Attach 17 | 5 7 . 4 1 . . Detach . | . . . . . . . Swap 13 | . 3 2 3 . 5 . Drop 32 | . 1 3 8 . 20 . Fire 131 | . 50 7 37 33 . 4 Melee . | . . . . . . . Ram 1 | . . . 1 . . . Kick . | . . . . . . . Crush . | . . . . . . . Escape Stasis . | . . . . . . . Rewire . | . . . . . . . Trap . | . . . . . . . Miscellaneous . | . . . . . . . Route ------- -11/Scrapyard -10/Materials (discovered 2 exits: *Mat / *Min) -10/Mines (discovered 3 exits: *Mat x2 / *Sub) -9/Materials (discovered 4 exits: Mat x3 / *Min) -9/Mines (discovered 2 exits: *Mat / *Zio) -7/Zion (discovered 2 exits: *Dee / *Pro) -7/Deep Caves History --------- Turn | Location | Event 19 | -11/Scrapyard | Discovered new exit (range 15) 37 | -11/Scrapyard | Entered Materials 205 | -10/Materials | Discovered new exit (range 16) 254 | -10/Materials | Core integrity fell below 50% 268 | -10/Materials | Lost 5 parts (1p2n2w) 297 | -10/Materials | Identified exit to Materials 302 | -10/Materials | Build established: Mutant 423 | -10/Materials | Discovered new exit (range 15) 436 | -10/Materials | Identified exit to Mines 437 | -10/Materials | Entered Mines 658 | -10/Mines | Discovered new exit (range 4) 821 | -10/Mines | Identified exit to Subcaves 847 | -10/Mines | Joined a pair of Derelicts in attacking an 0b10 outpost 899 | -10/Mines | Learned 2 Materials zone layouts 962 | -10/Mines | Excavation squad dispatched 962 | -10/Mines | A large section of the Mines collapsed 997 | -10/Mines | Received a Rocket Launcher from a helpful Derelict 1152 | -10/Mines | Build established: Scavenger-Mutant 1544 | -10/Mines | Found the Drone Emporium 1549 | -10/Mines | Found Prototype Device 1618 | -10/Mines | Core integrity fell below 20% 1685 | -10/Mines | Discovered exit to Materials (range 9) 1769 | -10/Mines | Discovered exit to Materials (range 12) 1815 | -10/Mines | Learned location of 1 exit from Materials 2091 | -10/Mines | Entered Materials 2091 | -9/Materials | Evolved 2 slots: Propulsion x2 2092 | -9/Materials | Identified exit to Materials 2335 | -9/Materials | Identified exit to Mines 2469 | -9/Materials | Destroyed 7 combat bots 2491 | -9/Materials | Entered Mines 2830 | -9/Mines | Lost 3 parts (2n1w) 2904 | -9/Mines | Discovered exit to Materials (range 5) 3101 | -9/Mines | Build established: Mutant 3155 | -9/Mines | A Derelict revealed a hidden shortcut to a safe place 3167 | -9/Mines | Identified exit to Zion 3171 | -9/Mines | Entered Zion 3444 | -7/Zion | Learned Factory garrison access intel 3526 | -7/Zion | Acquired unknown access codes intercepted by a Zionite 3567 | -7/Zion | Gained Derelict followers 3749 | -7/Zion | Learned location of Recycling (-7) 3803 | -7/Zion | Learned location of Storage (-7) 3824 | -7/Zion | Found Relay Coupler [Programmer] 3828 | -7/Zion | Found Relay Coupler [Programmer] 3832 | -7/Zion | Found Relay Coupler [Programmer] 3935 | -7/Zion | Found Prototype Processor 3944 | -7/Zion | Found Prototype Hackware 4064 | -7/Zion | Identified Spectral Analyzer 4102 | -7/Zion | Identified Exp. System Shield 4155 | -7/Zion | Identified Thief Drone Bay 4274 | -7/Zion | Discovered new exit (range 13) 4288 | -7/Zion | Identified exit to Proximity Caves 4323 | -7/Zion | Found Prototype Special Weapon 4325 | -7/Zion | Found Prototype Special Weapon 4326 | -7/Zion | Identified RU-N14's Throwing Claymores (x2) 4518 | -7/Zion | Imprinted 4520 | -7/Zion | Declared Zion's savior 4742 | -7/Zion | Found CR-A16's Pointy Stick 4830 | -7/Zion | Learned location of 1 exit from Lower Caves 5061 | -7/Zion | Opened final containment barrier to the Deep Caves 5082 | -7/Zion | Discovered new exit (range 3) 5082 | -7/Zion | Saw the warning signs outside the Deep Caves entrance 5083 | -7/Zion | Identified exit to Deep Caves 5108 | -7/Zion | Entered Deep Caves 5108 | -7/Deep Caves | Accompanied by 7 allies 5300 | -7/Deep Caves | Attacked by Z-Imprinter 5303 | -7/Deep Caves | Z-Facility disabled 5311 | -7/Deep Caves | Core integrity fell below 50% 5320 | -7/Deep Caves | Core integrity fell below 20% 5324 | -7/Deep Caves | Destroyed by IV-NPT(z) with Zionite Laser-S Last Messages --------------- RU-N14's Throwing Claymores expended. Machine disabled. as-04030 destroyed. Slug penetrates Wall. as-56597 destroyed. Acquired 13 matter. The unstable cave ceiling collapses. NEW_ZION: Z-Facility proximity alert. 57-V61(g) destroyed. N6-5MR(o) is busy at the terminal. V2-L03(o) is busy at the terminal. Z-Imprinter: GET AWAY FROM HERE! I've worked too hard for our future just to have you ruin everything! Z-Facility disabled. Cesium-ion Thruster destroyed. Gauss Rifle destroyed. Lgt. Deuterium Engine destroyed. Com. Wheel destroyed. K7-9H9(z) destroyed. Map ----- +----------------------------------------------------+ | ??????????????""""""""""" | | ????????????????""""""""" | | ????????????????"""""" | | ????????????????""""""""" | | ?????????????????"""""""" # | | ?????????????????"""""""" ## | | ????????????????""""""""" #? | | ????????????????"""" " " #? | | ????????????????""""" ? | | ????????????????"""" # | | ????????????????""""" # | | ????????????????""""" ## | | ?????????????????"""""" #? | | ???????????????""""""""" !I ? | | ???????????????""" !%z ? | | ???????????????""" """ =[ ?? | | ????????????????"" """"" ??????? | | ?????????????????" """"""" ??????? | | ????????????????"" ?"""""" ??????? | | ????????????????"" """"""" ??????? | | ????????????????"" """"" ??????? | | ???????????????""" """ ??????? | | ???????????????""" ??????? | | ???????????????""""""""""o ??????? | | ????????? """"""""" ??????? | | ????????? @ ??????? | | ????????? ??????? | | ????????? ???????? | | ????????? ???????? | | ?????????? ????????? | | ?????????? ????????? | | ??????????? ##### ????????? | | ??????????? ####????## ?????????? | | ??????????? ##?????????####?????????? | | ???????????? ####????????????????????????? | | ????????????#########????????????????????????????? | | ?????????????????????????????????????????????????? | | | | | | | | | | | | | | | | | | | | | | | | | | | +----------------------------------------------------+ Best States ------------- Heat Dissipation 28 Energy Generation 14 Energy Capacity 265 Matter Stores 300 Matter Capacity 300 Sight Range 16 Terrain Scan Density 10 ECM Strength 1 Resistance: KI 20 Resistance: TH 20 Resistance: EX 20 Resistance: EM 20 Resistance: I 20 Resistance: S 20 Resistance: P 20 Evasion (%) 50 Offensive Hacking 10 Item Schematics ----------------- Lgt. Angular Momentum Engine | -9/Materials | Scanalyzed Imp. Weapon Cycler | -7/Zion | Archive Imp. Particle Charger | -7/Zion | Archive System Restoration Module | -7/Zion | Archive Mak. Axe | -7/Zion | Archive Adv. Sensor Array | -7/Zion | Archive Hvy. Riot Gun | -7/Zion | Archive Imp. Cryofiber Web | -7/Zion | Archive Med. Treads | -7/Zion | Archive Chainsword | -7/Zion | Archive Hvy. Machine Gun | -7/Zion | Archive Imp. Cooling System | -7/Zion | Archive Proton Missile Launcher | -7/Zion | Archive Antigrav System | -7/Zion | Archive Robot Schematics ------------------ B-48 Gladiator | -7/Zion | Archive Y-45 Defender | -7/Zion | Archive A-02 Transporter | -7/Zion | Archive Fabricated ------------ Nothing Alien Tech Used ----------------- None Achievements -------------- Adventurer Robot Respite Signs Are For Wimps The More The Merrier The One Challenges ------------ None Game ------ Seed VortexDroneEdition Manual? 0 Play Time 00:44:43 Cumulative 13.4 hours Start 2024.04.04 @ 13:55:14 End 2024.04.04 @ 14:42:57 Sessions 1 Manual Loads 0 Difficulty Adventurer Special Mode None Game No. 17 Rogue 0 Adventurer 17 Explorer 0 Win Type - Total 0 Types 0/0/0/0/0/0/0/0/0 Lore% 19 Gallery% 22 Achievement% 14 Wizard Run 0 Options --------- Layout 1 ASCII 0 Keyboard 0 Movement Mouse Keybinds 0 Fullscreen 1 Font 24/Smallcaps Map View 50x35 Zoom Use 0% Tactical HUD 0 Map Filters NONE Filters NONE Steam 0 RUN: 85e4994e-d582-4370-8d7d-cfb531cffb8d